bitfinex-derivatives/quotes_BTCF0:USTF0_20251110
["timestamp","ask_amount","ask_price","bid_price","bid_amount"]
[1762788393934,0.29518189,105450.0,105440.0,0.15417213]
[1762788394336,0.20032239,105450.0,105440.0,0.15417213]
[1762788394938,0.02692,105450.0,105440.0,0.15417213]
[1762788395142,0.20032239,105450.0,105440.0,0.22231371]
[1762788395443,0.29617759,105450.0,105440.0,0.00219803]
[1762788396041,0.29617759,105450.0,105440.0,0.00319803]
[1762788396443,0.29617759,105450.0,105440.0,0.001]
[1762788396641,0.1217842,105440.0,105430.0,0.00014246]
[1762788396842,0.29518659,105440.0,105430.0,0.00014246]
[1762788398043,0.29518659,105440.0,105430.0,0.00234049]
[1762788398440,0.29718659,105440.0,105430.0,0.00234049]
[1762788398845,0.29718659,105440.0,105430.0,0.00014246]
[1762788399448,0.29718659,105440.0,105430.0,0.00234049]
[1762788399751,0.29818659,105440.0,105430.0,0.11918359]
[1762788400050,0.29818659,105440.0,105430.0,0.02431049]
[1762788400639,0.29718659,105440.0,105430.0,0.00234049]
[1762788401335,0.29618659,105440.0,105430.0,0.00234049]
[1762788401543,0.29618659,105440.0,105430.0,0.00334049]
[1762788401737,0.29518659,105440.0,105430.0,0.00334049]
[1762788402150,0.29518659,105440.0,105430.0,0.09821369]
[1762788402349,0.29518659,105440.0,105430.0,0.00334049]
[1762788403245,0.29518659,105440.0,105430.0,0.00234049]
[1762788403447,0.29618659,105440.0,105430.0,0.00234049]
[1762788404549,0.29618659,105440.0,105430.0,0.00014246]
[1762788404853,0.1215313,105410.0,105400.0,0.22056578]
[1762788405160,0.20004239,105410.0,105400.0,0.15462223]
[1762788405459,0.02664,105410.0,105400.0,0.15462223]
[1762788405753,0.20004239,105420.0,105410.0,0.1390813]
[1762788405948,0.30058469,105420.0,105410.0,0.07029145]
[1762788406255,0.1215313,105410.0,105400.0,0.06823588]
[1762788406455,0.29493369,105410.0,105400.0,0.07043391]
[1762788407446,0.29493369,105410.0,105400.0,0.20022421]
[1762788407646,0.29493369,105410.0,105400.0,0.20122421]
[1762788408554,0.29493369,105410.0,105400.0,0.20122411]
[1762788408756,0.29713172,105410.0,105400.0,0.002]
[1762788408956,0.0949093,105390.0,105380.0,0.01292]
[1762788409259,0.27050972,105390.0,105380.0,0.03594266]
[1762788409449,0.27050972,105390.0,105380.0,0.05918266]
[1762788409650,0.27050972,105390.0,105380.0,0.15410096]
[1762788409955,0.00219803,105390.0,105380.0,0.15410096]
[1762788411765,0.27050972,105390.0,105380.0,0.15910096]
[1762788412164,0.27050972,105390.0,105380.0,0.06418266]
[1762788412371,0.27050972,105390.0,105380.0,0.15910096]
[1762788412774,0.27050972,105390.0,105380.0,0.06418266]
[1762788413167,0.27050972,105390.0,105380.0,0.15910096]
[1762788414976,0.27050972,105390.0,105380.0,0.06418266]
[1762788416074,0.27050972,105390.0,105380.0,0.01865266]
[1762788419176,0.27050972,105390.0,105380.0,0.005]
[1762788422576,0.0949183,105380.0,105370.0,0.00014246]
[1762788422766,0.27051872,105380.0,105370.0,0.00014246]
[1762788422970,0.0949273,105370.0,105360.0,0.01292]
[1762788423174,0.21550642,105370.0,105360.0,0.01365266]
[1762788423674,0.0949364,105360.0,105350.0,0.0097784]
[1762788423874,0.21551552,105360.0,105350.0,0.03314106]
[1762788424172,0.21551552,105360.0,105320.0,0.0572]
[1762788424173,0.0949635,105330.0,105320.0,0.0572]
[1762788424368,0.09716153,105330.0,105320.0,0.05793266]
[1762788424570,0.21554262,105330.0,105320.0,0.16232442]
[1762788424973,0.21554262,105330.0,105320.0,0.01365266]
[1762788425182,0.2156392,105330.0,105320.0,0.01365266]
[1762788425370,0.09498,105320.0,105310.0,0.00014246]
[1762788425579,0.33394021,105320.0,105310.0,0.00014246]
[1762788425772,0.12057912,105320.0,105310.0,0.14013662]
[1762788426076,0.00014246,105340.0,105330.0,0.1392435]
[1762788426269,0.00234049,105340.0,105330.0,0.13997616]
[1762788426673,0.12072158,105340.0,105330.0,0.04501266]
[1762788426871,0.12072158,105340.0,105330.0,0.13997616]
[1762788427581,0.21567598,105340.0,105330.0,0.13997616]
[1762788429082,0.12072158,105340.0,105330.0,0.13997616]
[1762788430684,0.21567608,105340.0,105330.0,0.13997616]
[1762788430879,0.12072158,105340.0,105330.0,0.13997616]
[1762788431073,0.21567608,105340.0,105330.0,0.00073266]
[1762788431278,0.0949635,105330.0,105320.0,0.01355]
[1762788431476,0.12057912,105330.0,105320.0,0.15353516]
[1762788432684,0.12057912,105330.0,105320.0,0.15453516]
[1762788433487,0.00219803,105330.0,105320.0,0.15453516]
[1762788434379,0.00219803,105330.0,105320.0,0.15553516]
[1762788434984,0.12057912,105330.0,105320.0,0.15553516]
[1762788435875,0.11852355,105340.0,105330.0,0.1392434]
[1762788436080,0.00234049,105340.0,105330.0,0.13997606]
[1762788436282,0.00234049,105340.0,105330.0,0.37729606]
[1762788436680,0.00234049,105340.0,105330.0,0.45485816]
[1762788436886,0.0949364,105360.0,105350.0,0.04428]
[1762788437078,0.12057912,105360.0,105350.0,0.13995796]
[1762788437380,0.0949249,105380.0,105370.0,0.04428]
[1762788437579,0.09712293,105380.0,105370.0,0.04501266]
[1762788438378,0.0949273,105370.0,105360.0,0.15290876]
[1762788438577,0.21550642,105370.0,105360.0,0.15364142]
[1762788438979,0.21550642,105370.0,105360.0,0.05870512]
[1762788439583,0.21550642,105370.0,105360.0,0.01442512]
[1762788440077,0.33388751,105370.0,105360.0,0.01369246]
[1762788440585,0.21550642,105370.0,105360.0,0.05846512]
[1762788441284,0.21850642,105370.0,105360.0,0.05846512]
[1762788441584,0.22250642,105370.0,105360.0,0.05946512]
[1762788442181,0.22250642,105370.0,105360.0,0.15440142]
[1762788443088,0.22250642,105370.0,105360.0,0.05946512]
[1762788443695,0.22250642,105370.0,105360.0,0.15440152]
[1762788445195,0.22250642,105370.0,105360.0,0.05946512]
[1762788445689,0.22250642,105370.0,105360.0,0.15440142]
[1762788446688,0.12757912,105370.0,105360.0,0.15440142]
[1762788448894,0.00919803,105370.0,105360.0,0.15440142]
[1762788449398,0.12757912,105370.0,105360.0,0.15440142]
[1762788449898,0.22250642,105370.0,105360.0,0.15440142]
[1762788451090,0.10412533,105370.0,105360.0,0.15440142]
[1762788451293,0.22250652,105370.0,105360.0,0.15440142]
[1762788453303,0.12757912,105370.0,105360.0,0.15440142]
[1762788453500,0.22250652,105370.0,105360.0,0.15440142]
[1762788453902,0.22250652,105370.0,105360.0,0.05946512]
[1762788454198,0.34088761,105370.0,105360.0,0.01542512]
[1762788454401,0.0949454,105350.0,105340.0,0.12548786]
[1762788454605,0.21552452,105350.0,105340.0,0.22117492]
[1762788455402,0.21552452,105350.0,105340.0,0.12622052]
[1762788455601,0.21552452,105350.0,105340.0,0.06789786]
[1762788455800,0.0949544,105340.0,105330.0,0.00014246]
[1762788456004,0.21553352,105340.0,105330.0,0.00014246]
[1762788456806,0.21553352,105340.0,105330.0,0.00087512]
[1762788457209,0.21553352,105340.0,105330.0,0.04491512]
[1762788457607,0.12057912,105340.0,105330.0,0.13987852]
[1762788458208,0.11938109,105350.0,105340.0,0.1521044]
[1762788458508,0.12157912,105350.0,105340.0,0.15283706]
[1762788458806,0.21552452,105350.0,105340.0,0.15283706]
[1762788459610,0.12357912,105350.0,105340.0,0.15283706]
[1762788460815,0.12257912,105350.0,105340.0,0.15283706]
[1762788461508,0.21752482,105350.0,105340.0,0.15283706]
[1762788461695,0.21652482,105350.0,105340.0,0.15283706]
[1762788461901,0.12157912,105350.0,105340.0,0.15283706]
[1762788463799,0.001,105350.0,105340.0,0.15283706]
[1762788465209,0.12157912,105350.0,105340.0,0.15283706]
[1762788465406,0.001,105350.0,105340.0,0.15283706]
[1762788465614,0.00014246,105360.0,105350.0,0.04404]
[1762788465904,0.00220049,105360.0,105350.0,0.13971836]
[1762788466213,0.12058158,105360.0,105350.0,0.13971836]
[1762788467107,0.12058158,105360.0,105350.0,0.14071836]
[1762788467306,0.00220049,105360.0,105350.0,0.14071836]
[1762788467505,0.12058158,105360.0,105350.0,0.14071836]
[1762788468011,0.00220049,105360.0,105350.0,0.14071836]
[1762788468411,2.46e-06,105360.0,105350.0,0.09667836]
[1762788468913,2.46e-06,105360.0,105350.0,0.09767836]
[1762788469298,0.00220049,105360.0,105350.0,0.14214836]
[1762788469504,0.12058158,105360.0,105350.0,0.14214836]
[1762788470012,0.21551818,105360.0,105350.0,0.14214836]
[1762788470714,0.12058158,105360.0,105350.0,0.14214836]
[1762788471718,0.12058158,105360.0,105350.0,0.4031055]
[1762788471719,2.46e-06,105360.0,105350.0,0.4031055]
[1762788471909,2.46e-06,105360.0,105350.0,0.33495836]
[1762788472216,2.46e-06,105360.0,105350.0,0.41770257]
[1762788473019,2.46e-06,105360.0,105350.0,0.41870257]
[1762788473412,0.0949161,105390.0,105380.0,0.1525386]
[1762788473613,0.21549522,105390.0,105380.0,0.05835266]
[1762788474613,0.21549522,105390.0,105380.0,0.15327126]
[1762788476619,0.12057912,105390.0,105380.0,0.15327126]
[1762788476917,0.21548872,105390.0,105380.0,0.15327126]
[1762788477216,0.21548872,105390.0,105370.0,0.09506936]
[1762788477413,0.09710763,105390.0,105380.0,0.01382266]
[1762788478318,0.09710763,105390.0,105380.0,0.03510266]
[1762788478521,0.09710763,105390.0,105380.0,0.05702266]
[1762788478724,0.21548872,105390.0,105380.0,0.05702266]
[1762788479712,0.21648872,105390.0,105380.0,0.05702266]
[1762788479916,0.21848872,105390.0,105380.0,0.05702266]
[1762788480122,0.21848872,105390.0,105380.0,0.15194126]
[1762788480323,0.21848872,105390.0,105380.0,0.05702266]
[1762788480523,0.21848872,105390.0,105380.0,0.01382266]
[1762788481215,0.21648872,105390.0,105380.0,0.00073266]
[1762788481416,0.0949186,105380.0,105370.0,0.04334246]
[1762788481612,0.21549772,105380.0,105370.0,0.04407512]
[1762788481819,0.21549772,105380.0,105370.0,0.13900282]
[1762788482023,0.21549772,105380.0,105370.0,0.04407512]
[1762788482525,0.21549772,105380.0,105370.0,0.00087512]
[1762788482716,0.21549772,105380.0,105370.0,0.13900272]
[1762788482920,0.27066346,105380.0,105370.0,0.04407512]
[1762788483124,0.27066346,105380.0,105370.0,0.13900272]
[1762788485822,0.17574486,105380.0,105370.0,0.13900272]
[1762788487526,0.27066346,105380.0,105370.0,0.13900272]
[1762788487726,0.00014246,105400.0,105390.0,0.0432]
[1762788487917,0.27078792,105400.0,105390.0,0.20695369]
[1762788488420,0.17588732,105400.0,105390.0,0.20695369]
[1762788488820,0.00234049,105400.0,105390.0,0.20695369]
[1762788489022,0.00334049,105400.0,105390.0,0.20695369]
[1762788489422,0.00234049,105400.0,105390.0,0.20695369]
[1762788489616,0.00334049,105400.0,105390.0,0.20695369]
[1762788489929,0.00534049,105400.0,105390.0,0.20695369]
[1762788490427,0.00314246,105400.0,105390.0,0.20695369]
[1762788490727,0.00314246,105400.0,105390.0,0.13884226]
[1762788490925,0.00314246,105400.0,105390.0,0.22358647]
[1762788491327,0.0948889,105420.0,105400.0,0.0948979]
[1762788491520,0.27063376,105420.0,105410.0,0.04393266]
[1762788491829,0.27063376,105420.0,105410.0,0.05361317]
[1762788492524,0.27063376,105420.0,105410.0,0.00073266]
[1762788492723,0.0948916,105410.0,105400.0,0.05643246]
[1762788493027,0.27063646,105410.0,105400.0,0.00014246]
[1762788494021,0.0949096,105390.0,105380.0,0.01309]
[1762788494217,0.27065446,105390.0,105380.0,0.01382266]
[1762788495226,0.27065446,105390.0,105380.0,0.15194126]
[1762788495731,0.27065446,105390.0,105380.0,0.22004601]
[1762788496631,0.17574486,105390.0,105380.0,0.22004601]
[1762788497124,0.27065446,105390.0,105380.0,0.12512741]
[1762788497328,0.27065446,105390.0,105380.0,0.05702266]
[1762788497829,0.27065446,105390.0,105380.0,0.00073266]
[1762788499020,0.0949186,105380.0,105370.0,0.07775297]
[1762788499222,0.27066346,105380.0,105370.0,0.09976563]
[1762788499532,0.27066346,105380.0,105370.0,0.12081563]
[1762788500528,0.27066346,105380.0,105370.0,0.21574323]
[1762788500935,0.27066346,105380.0,105370.0,0.12081563]
[1762788501124,0.27066346,105380.0,105370.0,0.05271088]
[1762788501326,0.27066346,105380.0,105370.0,0.04320512]
[1762788502332,0.27066346,105380.0,105370.0,0.00014246]
[1762788503432,0.27066346,105380.0,105370.0,0.09580282]
[1762788503636,0.27066346,105380.0,105370.0,0.04309512]
[1762788503834,0.27066346,105380.0,105370.0,0.13802282]
[1762788504238,0.27066346,105380.0,105370.0,0.04309512]
[1762788504733,0.27066346,105380.0,105370.0,0.00087512]
[1762788504935,0.27066346,105380.0,105370.0,0.02204512]
[1762788505539,0.27066346,105380.0,105370.0,0.04309512]
[1762788505746,0.27066346,105380.0,105370.0,0.13802272]
[1762788505942,0.27066346,105380.0,105370.0,0.04309512]
[1762788506332,0.27066346,105380.0,105370.0,0.00087512]
[1762788507537,0.27066346,105380.0,105370.0,0.13802282]
[1762788508045,0.09711663,105380.0,105370.0,0.13802282]
[1762788508232,0.27066346,105380.0,105370.0,0.13802282]
[1762788509149,0.27066346,105380.0,105370.0,0.04309512]
[1762788511342,0.27066346,105380.0,105370.0,0.13802282]
[1762788512438,0.00219803,105380.0,105370.0,0.20612757]
[1762788512839,0.26859629,105400.0,105390.0,0.1371297]
[1762788513040,0.17588732,105400.0,105390.0,0.13786236]
[1762788513248,0.00234049,105400.0,105390.0,0.13786236]
[1762788513647,0.00014246,105400.0,105390.0,0.20596711]
[1762788513836,0.17588732,105400.0,105390.0,0.06810475]
[1762788514035,0.0949187,105380.0,105370.0,0.06824721]
[1762788514244,0.27066356,105380.0,105370.0,0.00087512]
[1762788514455,0.09711673,105380.0,105370.0,0.13802282]
[1762788514747,0.00219803,105380.0,105370.0,0.13802282]
[1762788514947,0.26846183,105390.0,105380.0,0.1509987]
[1762788515146,0.27065986,105390.0,105380.0,0.05681266]
[1762788517454,0.27165986,105390.0,105380.0,0.05681266]
[1762788518148,0.09810763,105390.0,105380.0,0.15173126]
[1762788518342,0.27165446,105390.0,105380.0,0.05681266]
[1762788519655,0.27165446,105390.0,105380.0,0.15173126]
[1762788519954,0.27265446,105390.0,105380.0,0.15173126]
[1762788520354,0.17774486,105390.0,105380.0,0.15173126]
[1762788520856,0.27265446,105390.0,105380.0,0.15173126]
[1762788521053,0.17774486,105390.0,105380.0,0.15173126]
[1762788521350,0.00419803,105390.0,105380.0,0.21983601]
[1762788521655,0.00219803,105390.0,105380.0,0.15173126]
[1762788522341,0.00219803,105390.0,105380.0,0.23647547]
[1762788522952,0.27065446,105390.0,105380.0,0.23647547]
[1762788523152,0.27065446,105390.0,105380.0,0.14155687]
[1762788523353,0.27065446,105390.0,105380.0,0.21993438]
[1762788523553,0.27065446,105390.0,105380.0,0.12501578]
[1762788523753,0.27065446,105390.0,105380.0,0.21993438]
[1762788524053,0.09710763,105390.0,105380.0,0.21993438]
[1762788524256,0.27065446,105390.0,105380.0,0.12501578]
[1762788524556,0.27265446,105390.0,105380.0,0.21993448]
[1762788525360,0.27265446,105390.0,105380.0,0.15173136]
[1762788526457,0.09910763,105390.0,105380.0,0.15173136]
[1762788526755,0.17774486,105390.0,105380.0,0.15173136]
[1762788526955,0.27265456,105390.0,105380.0,0.15173136]
[1762788527455,0.09910773,105390.0,105380.0,0.15173136]
[1762788527658,0.27265456,105390.0,105380.0,0.15173136]
[1762788527855,0.27165456,105390.0,105380.0,0.15173136]
[1762788528251,0.27065456,105390.0,105380.0,0.15173136]
[1762788528849,0.27065456,105390.0,105380.0,0.21993448]
[1762788529546,0.00014246,105400.0,105390.0,0.1378596]
[1762788529745,0.09724109,105400.0,105390.0,0.20679538]
[1762788530548,0.00234049,105400.0,105390.0,0.20679538]
[1762788530748,0.17588732,105400.0,105390.0,0.22333647]
[1762788530952,0.27278792,105400.0,105390.0,0.22333647]
[1762788531360,0.09924109,105400.0,105390.0,0.22333647]
[1762788531761,0.09924109,105400.0,105390.0,0.13859226]
[1762788532055,0.09924109,105400.0,105390.0,0.22333647]
[1762788532559,0.27278792,105400.0,105390.0,0.13859226]
[1762788533157,0.27278792,105400.0,105390.0,0.22333647]
[1762788534050,0.27278792,105400.0,105390.0,0.20675564]
[1762788536052,0.27278792,105400.0,105390.0,0.11184604]
[1762788536552,0.27278792,105400.0,105390.0,0.04368266]
[1762788536960,0.27278792,105400.0,105390.0,0.00073266]
[1762788537353,0.27278792,105400.0,105390.0,0.04520266]
[1762788537554,0.27278792,105400.0,105390.0,0.00073266]
[1762788539561,0.27278792,105400.0,105390.0,0.09564226]
[1762788539756,0.27278792,105400.0,105390.0,0.14011226]
[1762788540556,0.17788732,105400.0,105390.0,0.14011226]
[1762788540754,0.27278792,105400.0,105390.0,0.11336604]
[1762788540954,0.27278792,105400.0,105390.0,0.04520266]
[1762788542064,0.27278792,105400.0,105390.0,0.14011226]
[1762788543664,0.17788732,105400.0,105390.0,0.15408226]
[1762788544256,0.00434049,105400.0,105390.0,0.22224564]
[1762788544574,0.17788732,105400.0,105390.0,0.22224564]
[1762788544865,0.12259459,105400.0,105390.0,0.22224564]
[1762788545067,0.12259459,105400.0,105390.0,0.15408226]
[1762788545269,0.00434049,105400.0,105390.0,0.15408226]
[1762788545564,0.00214246,105400.0,105390.0,0.15408226]
[1762788545769,0.00214246,105400.0,105390.0,0.23882647]
[1762788545968,0.00214246,105400.0,105390.0,0.15408226]
[1762788547366,0.00214246,105400.0,105390.0,0.22227214]
[1762788548170,0.00214246,105400.0,105390.0,0.15408226]
[1762788548361,0.00214246,105400.0,105390.0,0.22226646]
[1762788550166,0.1182541,105410.0,105400.0,0.05844]
[1762788550371,0.2131436,105420.0,105410.0,0.1533317]
[1762788550562,0.21534163,105420.0,105410.0,0.15406436]
[1762788550763,0.00219803,105420.0,105410.0,0.15406436]
[1762788550959,0.1182541,105430.0,105410.0,0.22222859]
[1762788551167,0.00234049,105430.0,105420.0,0.22148693]
[1762788551465,0.00234049,105430.0,105420.0,0.22215794]
[1762788552668,0.12059459,105430.0,105420.0,0.22215794]
[1762788553064,0.21546829,105430.0,105420.0,0.22210893]
[1762788553773,0.21546829,105430.0,105420.0,0.22510893]
[1762788554764,0.21546829,105430.0,105420.0,0.22310893]
[1762788554962,0.12059459,105430.0,105420.0,0.22410893]
[1762788556070,0.12059459,105430.0,105420.0,0.22310893]
[1762788556272,0.00234049,105430.0,105420.0,0.22310893]
[1762788556672,0.12059459,105430.0,105420.0,0.22310893]
[1762788556974,0.21546819,105430.0,105420.0,0.22310893]
[1762788557573,0.12059459,105430.0,105420.0,0.22310893]
[1762788559063,0.21546819,105430.0,105420.0,0.22310893]
[1762788559470,0.21546819,105430.0,105420.0,0.15505536]
[1762788560174,0.12059459,105430.0,105420.0,0.15505536]
[1762788560875,0.00234049,105430.0,105420.0,0.15505536]
[1762788561475,0.21546819,105430.0,105420.0,0.15505536]
[1762788561869,0.12059459,105430.0,105420.0,0.15505536]
[1762788563875,0.21546819,105430.0,105420.0,0.15505536]
[1762788564268,0.00234049,105430.0,105420.0,0.15505536]
[1762788564468,0.10055547,105450.0,105420.0,0.15505536]
[1762788564469,0.00569177,105450.0,105440.0,0.1520946]
[1762788564674,0.0948503,105460.0,105450.0,0.05723]
[1762788564871,0.2131044,105460.0,105450.0,0.05942803]
[1762788565077,0.2131044,105460.0,105450.0,0.00219803]
[1762788565464,0.2131044,105460.0,105450.0,0.15428363]
[1762788565869,0.2131044,105460.0,105450.0,0.16359145]
[1762788566065,0.1182541,105460.0,105450.0,0.16359145]
[1762788566671,0.2131007,105460.0,105450.0,0.16359145]
[1762788567281,0.1202541,105460.0,105450.0,0.16359145]
[1762788567475,0.2151007,105460.0,105450.0,0.16359145]
[1762788567671,0.1202541,105460.0,105450.0,0.16359145]
[1762788568671,0.002,105460.0,105450.0,0.16359145]
[1762788568866,0.2151007,105460.0,105450.0,0.16359145]
[1762788569267,0.002,105460.0,105450.0,0.16359145]
[1762788570474,0.1202541,105460.0,105450.0,0.16359145]
[1762788570669,0.00023696,105500.0,105490.0,0.1520496]
[1762788570871,0.1384037,105530.0,105520.0,0.05723]
[1762788571073,0.2566578,105530.0,105520.0,0.05942803]
[1762788571374,0.2566578,105530.0,105520.0,0.15422073]
[1762788571974,0.1618741,105530.0,105520.0,0.15422073]
[1762788572175,0.1406641,105530.0,105520.0,0.15422073]
[1762788572371,0.2566578,105530.0,105520.0,0.15422073]
[1762788572574,0.00014246,105540.0,105530.0,0.0433]
[1762788572575,0.04376246,105540.0,105530.0,0.0433]
[1762788572879,0.25679136,105540.0,105530.0,0.04549803]
[1762788573068,0.85679136,105540.0,105530.0,0.00219803]
[1762788573270,0.86600136,105540.0,105530.0,0.00219803]
[1762788574974,0.86600136,105540.0,105520.0,0.001]
[1762788574975,0.1384037,105530.0,105520.0,0.001]
[1762788575178,0.1414037,105530.0,105520.0,0.00319803]
[1762788575374,0.2596578,105530.0,105520.0,0.02522803]
[1762788575574,0.2596578,105530.0,105520.0,0.06042803]
[1762788576187,0.2596578,105530.0,105520.0,0.05942803]
[1762788576374,0.2596578,105530.0,105520.0,0.15422073]
[1762788576882,0.2596578,105530.0,105520.0,0.05942803]
[1762788577074,0.2646578,105530.0,105520.0,0.06042803]
[1762788577270,0.2616578,105530.0,105520.0,0.06042803]
[1762788578180,0.2646578,105530.0,105520.0,0.15522073]
[1762788578968,0.2646578,105530.0,105520.0,0.06042803]
[1762788579984,0.2646578,105530.0,105520.0,0.15522073]
[1762788580185,0.1464037,105530.0,105520.0,0.15522073]
[1762788580478,0.1486641,105530.0,105520.0,0.15522073]
[1762788580678,0.2434478,105530.0,105520.0,0.15522073]
[1762788580979,0.1698741,105530.0,105520.0,0.15522073]
[1762788581483,0.008,105530.0,105520.0,0.15522073]
[1762788581680,0.00014246,105540.0,105530.0,0.1520137]
[1762788581889,0.00014246,105540.0,105530.0,0.15421173]
[1762788582088,0.16211094,105550.0,105540.0,0.1520048]
[1762788582390,0.16211094,105550.0,105540.0,0.15420283]
[1762788582683,0.16211094,105550.0,105540.0,0.00219803]
[1762788582684,0.25687674,105550.0,105540.0,0.00219803]
[1762788583281,0.1383948,105540.0,105530.0,0.02217246]
[1762788583478,0.2566489,105540.0,105530.0,0.02437049]
[1762788583686,0.2566489,105540.0,105530.0,0.00234049]
[1762788586683,0.8576489,105540.0,105530.0,0.00014246]
[1762788587481,0.2566668,105520.0,105510.0,0.06691632]
[1762788587681,0.2566668,105520.0,105510.0,0.16391605]
[1762788587895,0.04362,105520.0,105510.0,0.16391605]
[1762788588091,0.2566668,105520.0,105510.0,0.16391605]
[1762788588384,0.2566668,105520.0,105510.0,0.06911435]
[1762788588589,0.2566668,105520.0,105510.0,0.16391605]
[1762788588782,0.2566668,105520.0,105510.0,0.06911435]
[1762788588978,0.3749209,105520.0,105510.0,0.00219803]
[1762788589182,0.2566668,105520.0,105510.0,0.02433803]
[1762788589384,0.2566668,105520.0,105510.0,0.15522973]
[1762788590186,0.1618741,105520.0,105510.0,0.15522973]
[1762788590384,0.04362,105520.0,105510.0,0.15522973]
[1762788590588,0.16236656,105530.0,105520.0,0.1530227]
[1762788590790,0.00014246,105530.0,105520.0,0.15522073]
[1762788591496,0.11839656,105530.0,105520.0,0.15522073]
[1762788591794,0.00014246,105530.0,105520.0,0.15522073]
[1762788593091,0.09492616,105530.0,105520.0,0.15522073]
[1762788593292,0.16236656,105530.0,105520.0,0.15522073]
[1762788593601,0.25715026,105530.0,105520.0,0.06042803]
[1762788595699,0.25815026,105530.0,105520.0,0.06042803]
[1762788595888,0.26736026,105530.0,105520.0,0.00219803]
[1762788597889,0.26736026,105530.0,105520.0,0.11833083]
[1762788598095,0.25815036,105530.0,105520.0,0.15363083]
[1762788598399,0.16336656,105530.0,105520.0,0.15363083]
[1762788598790,0.25815026,105530.0,105520.0,0.15363083]
[1762788598988,0.16336656,105530.0,105520.0,0.15363083]
[1762788599490,0.25815026,105530.0,105520.0,0.15363083]
[1762788599694,0.16336656,105530.0,105520.0,0.15363083]
[1762788600095,0.25815026,105530.0,105520.0,0.15363083]
[1762788600392,0.00014246,105530.0,105520.0,0.15363083]
[1762788601097,0.09500884,105550.0,105540.0,0.05664]
[1762788601397,0.25719294,105550.0,105540.0,0.05883803]
[1762788601602,0.25719294,105550.0,105540.0,0.15361273]
[1762788601795,0.23527664,105550.0,105540.0,0.15361273]
[1762788602292,0.00023684,105550.0,105540.0,0.15361273]
[1762788603192,0.00023684,105550.0,105540.0,0.39049273]
[1762788603396,0.1182541,105570.0,105560.0,0.1513968]
[1762788603397,0.2569355,105570.0,105560.0,0.1513968]
[1762788603699,0.27816265,105570.0,105560.0,0.05883803]
[1762788603897,0.14576528,105600.0,105590.0,0.05606]
[1762788604106,0.14576528,105600.0,105590.0,0.15298783]
[1762788604107,0.14425208,105600.0,105590.0,0.15298783]
[1762788604401,0.04953118,105600.0,105590.0,0.15298783]
[1762788604700,0.16778528,105600.0,105590.0,0.15298783]
[1762788605000,0.14425208,105600.0,105590.0,0.15298783]
[1762788605200,0.14425208,105600.0,105590.0,0.05825803]
[1762788605201,0.3170258,105600.0,105590.0,0.05825803]
[1762788605399,0.3170258,105600.0,105590.0,0.15298793]
[1762788605597,0.3170258,105600.0,105590.0,0.05825803]
[1762788606294,0.3170258,105600.0,105590.0,0.04558803]
[1762788606494,0.1386599,105590.0,105580.0,0.00014246]
[1762788606797,0.31143362,105590.0,105580.0,0.14046929]
[1762788607195,0.21670372,105590.0,105580.0,0.14046929]
[1762788607396,0.31143362,105590.0,105580.0,0.14046929]
[1762788607694,0.21670372,105590.0,105580.0,0.14046929]
[1762788607895,0.31143362,105590.0,105580.0,0.14046929]
[1762788608496,0.31143362,105590.0,105580.0,0.02368049]
[1762788608693,0.31143362,105590.0,105580.0,0.00114246]
[1762788608900,0.1386868,105560.0,105550.0,0.1381529]
[1762788609102,0.31146052,105560.0,105550.0,0.14035093]
[1762788609798,0.21670372,105560.0,105550.0,0.14035093]
[1762788610105,0.0947555,105570.0,105550.0,0.14035093]
[1762788610106,0.09489796,105570.0,105560.0,0.0947568]
[1762788610399,0.00014246,105570.0,105560.0,0.15359483]
[1762788611391,0.00014246,105570.0,105560.0,0.22819872]
[1762788611901,0.00114246,105570.0,105560.0,0.22819872]
[1762788612302,0.00114246,105570.0,105560.0,0.15359483]
[1762788612303,0.13982026,105570.0,105560.0,0.15359483]
[1762788612506,0.00114246,105570.0,105560.0,0.15359483]
[1762788612804,0.00114246,105570.0,105560.0,0.75359483]
[1762788613005,0.3170258,105600.0,105590.0,0.04339]
[1762788613208,0.3170258,105600.0,105590.0,0.04558803]
[1762788613404,0.14425208,105600.0,105590.0,0.04558803]
[1762788613598,0.3170258,105600.0,105590.0,0.14031793]
[1762788613807,0.3170258,105600.0,105590.0,0.04558803]
[1762788613808,0.3238558,105600.0,105590.0,0.04558803]
[1762788614598,0.3238558,105600.0,105590.0,0.14031793]
[1762788614799,0.3238558,105600.0,105590.0,0.04558803]
[1762788615410,0.15108208,105600.0,105590.0,0.04558803]
[1762788615610,0.3238558,105600.0,105590.0,0.04558803]
[1762788616111,0.3238558,105600.0,105590.0,0.14031793]
[1762788616309,0.3238558,105600.0,105590.0,0.04558803]
[1762788617098,0.3238558,105600.0,105590.0,0.00219803]
[1762788617302,0.1386599,105590.0,105580.0,0.00014246]
[1762788617603,0.31143362,105590.0,105580.0,0.14046929]
[1762788617905,0.31143362,105590.0,105580.0,0.00234049]
[1762788619608,0.31243362,105590.0,105580.0,0.00234049]
[1762788620708,0.1378279,105570.0,105560.0,0.1378864]
[1762788621008,0.1378279,105570.0,105560.0,0.15278443]
[1762788621009,0.31060162,105570.0,105560.0,0.15278443]
[1762788621194,0.31060162,105570.0,105560.0,0.05802803]
[1762788621398,0.29922632,105570.0,105560.0,0.15278483]
[1762788621911,0.0317047,105570.0,105560.0,0.15278483]
[1762788622101,0.29922632,105570.0,105560.0,0.00219803]
[1762788622497,0.29922632,105570.0,105560.0,0.00319803]
[1762788623211,0.29922632,105570.0,105560.0,0.00419803]
[1762788623609,0.29922632,105570.0,105560.0,0.001]
[1762788623806,0.04308,105560.0,105550.0,0.00014246]
[1762788624009,0.04308,105560.0,105530.0,0.13803276]
[1762788624010,0.1378548,105540.0,105530.0,0.13803276]
[1762788624212,0.31062852,105540.0,105530.0,0.14023079]
[1762788625610,0.31062852,105540.0,105530.0,0.04544699]
[1762788625912,0.31062852,105540.0,105530.0,0.14223079]
[1762788626109,0.31062852,105540.0,105530.0,0.04744699]
[1762788626310,0.32123852,105540.0,105530.0,0.04744699]
[1762788626612,0.32123852,105540.0,105530.0,0.00631699]
[1762788627213,0.32123852,105540.0,105530.0,0.00431699]
[1762788628007,0.32123852,105540.0,105530.0,0.09910079]
[1762788628309,0.31062852,105540.0,105530.0,0.14223079]
[1762788628614,0.32123852,105540.0,105530.0,0.00231699]
[1762788629616,0.32423852,105540.0,105530.0,0.00231699]
[1762788629805,0.32423852,105540.0,105530.0,0.02380699]
[1762788630010,0.32423852,105540.0,105530.0,0.14023079]
[1762788630205,0.21885372,105540.0,105530.0,0.14023079]
[1762788630409,0.31362852,105540.0,105530.0,0.14023079]
[1762788630819,0.32123852,105540.0,105530.0,0.00231699]
[1762788631018,0.21685372,105540.0,105530.0,0.14023079]
[1762788631718,0.32223852,105540.0,105530.0,0.02380699]
[1762788632021,0.1378638,105530.0,105520.0,0.05093488]
[1762788632226,0.31063752,105530.0,105520.0,0.00234049]
[1762788632615,0.1378638,105530.0,105520.0,0.00014246]
[1762788632926,0.31063752,105530.0,105520.0,0.00014246]
[1762788633134,0.31072333,105530.0,105520.0,0.00234049]
[1762788633625,0.0948017,105510.0,105500.0,0.06404242]